[Event "Titled Tuesday Blitz October 25 Late 2022"]
[White "Averjanov, Alexey"]
[Black "Xiong, Jeffery"]
[WhiteFideId "14109867"]
[BlackFideId "2047640"]
[WhiteElo "2675"]
[BlackElo "2725"]
[Result "1/2-1/2"]
[Round "05"]
[TimeControl "180+1"]
[Date "2022.10.26"]
[WhiteClock "0:00:29"]
[BlackClock "0:00:23"]

1. d4 {[%clk 0:03:00]}  d5 {[%clk 0:02:58]} 2. c4 {[%clk 0:03:00]}  e6 {[%clk 0:02:59]} 3. Nf3 {[%clk 0:03:00]}  dxc4 {[%clk 0:02:58]} 4. e3 {[%clk 0:03:00]}  c5 {[%clk 0:02:57]} 5. Bxc4 {[%clk 0:02:59]}  a6 {[%clk 0:02:57]} 6. O-O {[%clk 0:02:59]}  Nf6 {[%clk 0:02:58]} 7. b3 {[%clk 0:02:57]}  b6 {[%clk 0:02:53]} 8. Be2 {[%clk 0:02:51]}  Bb7 {[%clk 0:02:51]} 9. Ne5 {[%clk 0:02:47]}  Nbd7 {[%clk 0:02:44]} 10. Bf3 {[%clk 0:02:46]}  Qc7 {[%clk 0:02:44]} 11. Nxd7 {[%clk 0:02:38]}  Qxd7 {[%clk 0:02:40]} 12. Bb2 {[%clk 0:02:36]}  Rd8 {[%clk 0:02:40]} 13. Nd2 {[%clk 0:02:33]}  Be7 {[%clk 0:02:38]} 14. Qe2 {[%clk 0:02:28]}  O-O {[%clk 0:02:38]} 15. Rfd1 {[%clk 0:02:27]}  Nd5 {[%clk 0:02:24]} 16. Rac1 {[%clk 0:02:24]}  Qb5 {[%clk 0:02:12]} 17. dxc5 {[%clk 0:02:16]}  Bxc5 {[%clk 0:02:02]} 18. Qxb5 {[%clk 0:02:11]}  axb5 {[%clk 0:02:03]} 19. Ne4 {[%clk 0:02:12]}  Be7 {[%clk 0:02:02]} 20. Nc3 {[%clk 0:02:07]}  Nxc3 {[%clk 0:02:00]} 21. Bxc3 {[%clk 0:02:08]}  Bxf3 {[%clk 0:01:57]} 22. gxf3 {[%clk 0:02:09]}  Rxd1+ {[%clk 0:01:54]} 23. Rxd1 {[%clk 0:02:06]}  Ra8 {[%clk 0:01:55]} 24. Rd7 {[%clk 0:02:03]}  Kf8 {[%clk 0:01:28]} 25. Bxg7+ {[%clk 0:01:56]}  Kxg7 {[%clk 0:01:10]} 26. Rxe7 {[%clk 0:01:56]}  Rxa2 {[%clk 0:01:11]} 27. Rb7 {[%clk 0:01:52]}  Rb2 {[%clk 0:01:11]} 28. Rxb6 {[%clk 0:01:52]}  Rxb3 {[%clk 0:01:12]} 29. Kg2 {[%clk 0:01:48]}  Kf6 {[%clk 0:01:12]} 30. f4 {[%clk 0:01:46]}  b4 {[%clk 0:01:12]} 31. Kf3 {[%clk 0:01:46]}  Rb1 {[%clk 0:01:12]} 32. h4 {[%clk 0:01:43]}  b3 {[%clk 0:01:12]} 33. Rb7 {[%clk 0:01:42]}  Kg7 {[%clk 0:01:10]} 34. Ke4 {[%clk 0:01:39]}  Kf6 {[%clk 0:01:10]} 35. Kf3 {[%clk 0:01:39]}  h5 {[%clk 0:01:11]} 36. Ke4 {[%clk 0:01:37]}  Rb2 {[%clk 0:01:11]} 37. Kf3 {[%clk 0:01:37]}  Kg6 {[%clk 0:01:12]} 38. Rb8 {[%clk 0:01:33]}  Rb1 {[%clk 0:01:12]} 39. Ke4 {[%clk 0:01:32]}  Rh1 {[%clk 0:01:10]} 40. Rxb3 {[%clk 0:01:30]}  Rxh4 {[%clk 0:01:11]} 41. Kf3 {[%clk 0:01:30]}  Rh1 {[%clk 0:01:11]} 42. Kg2 {[%clk 0:01:29]}  Rc1 {[%clk 0:01:10]} 43. Rb5 {[%clk 0:01:25]}  Rc8 {[%clk 0:01:10]} 44. Rg5+ {[%clk 0:01:23]}  Kh6 {[%clk 0:01:11]} 45. Kh3 {[%clk 0:01:21]}  Rc1 {[%clk 0:01:11]} 46. Kg2 {[%clk 0:01:18]}  Rc2 {[%clk 0:01:07]} 47. Kg3 {[%clk 0:01:16]}  Rd2 {[%clk 0:01:07]} 48. Kf3 {[%clk 0:01:13]}  Rd8 {[%clk 0:00:57]} 49. Kg3 {[%clk 0:01:12]}  f6 {[%clk 0:00:57]} 50. Rc5 {[%clk 0:01:09]}  Rg8+ {[%clk 0:00:58]} 51. Kh4 {[%clk 0:01:07]}  Rg4+ {[%clk 0:00:58]} 52. Kh3 {[%clk 0:01:06]}  Kg6 {[%clk 0:00:48]} 53. f3 {[%clk 0:01:02]}  Rg1 {[%clk 0:00:48]} 54. e4 {[%clk 0:01:02]}  Rd1 {[%clk 0:00:39]} 55. f5+ {[%clk 0:00:58]}  exf5 {[%clk 0:00:39]} 56. Rxf5 {[%clk 0:00:58]}  Rg1 {[%clk 0:00:33]} 57. Rb5 {[%clk 0:00:53]}  Rg5 {[%clk 0:00:33]} 58. Rb6 {[%clk 0:00:47]}  Ra5 {[%clk 0:00:32]} 59. f4 {[%clk 0:00:43]}  Kf7 {[%clk 0:00:29]} 60. Kh4 {[%clk 0:00:42]}  Ra4 {[%clk 0:00:30]} 61. Kxh5 {[%clk 0:00:40]}  Rxe4 {[%clk 0:00:29]} 62. Kg4 {[%clk 0:00:40]}  Kg6 {[%clk 0:00:29]} 63. Ra6 {[%clk 0:00:36]}  Rb4 {[%clk 0:00:28]} 64. Rc6 {[%clk 0:00:34]}  Rb1 {[%clk 0:00:27]} 65. Rc8 {[%clk 0:00:33]}  Rg1+ {[%clk 0:00:26]} 66. Kf3 {[%clk 0:00:33]}  Ra1 {[%clk 0:00:25]} 67. Kg4 {[%clk 0:00:33]}  Ra3 {[%clk 0:00:25]} 68. f5+ {[%clk 0:00:32]}  Kf7 {[%clk 0:00:24]} 69. Rc7+ {[%clk 0:00:31]}  Ke8 {[%clk 0:00:24]} 70. Kf4 {[%clk 0:00:31]}  Ra4+ {[%clk 0:00:24]} 71. Kf3 {[%clk 0:00:30]}  Rb4 {[%clk 0:00:23]} 72. Ke3 {[%clk 0:00:30]}  Rb5 {[%clk 0:00:22]} 73. Ke4 {[%clk 0:00:30]}  Re5+ {[%clk 0:00:22]} 74. Kf4 {[%clk 0:00:30]}  Ra5 {[%clk 0:00:22]} 75. Rb7 {[%clk 0:00:30]}  Kf8 {[%clk 0:00:22]} 76. Rc7 {[%clk 0:00:30]}  Kg8 {[%clk 0:00:22]} 77. Rb7 {[%clk 0:00:30]}  Rc5 {[%clk 0:00:22]} 78. Ra7 {[%clk 0:00:30]}  Rc4+ {[%clk 0:00:22]} 79. Kf3 {[%clk 0:00:30]}  Kf8 {[%clk 0:00:23]} 80. Rb7 {[%clk 0:00:30]}  Ke8 {[%clk 0:00:23]} 81. Ra7 {[%clk 0:00:30]}  Rc3+ {[%clk 0:00:23]} 82. Ke4 {[%clk 0:00:30]}  Rb3 {[%clk 0:00:24]} 83. Kf4 {[%clk 0:00:27]}  Rb4+ {[%clk 0:00:24]} 84. Kf3 {[%clk 0:00:27]}  Rb5 {[%clk 0:00:24]} 85. Kf4 {[%clk 0:00:28]}  Kf8 {[%clk 0:00:24]} 86. Kf3 {[%clk 0:00:28]}  Rxf5+ {[%clk 0:00:24]} 87. Kg4 {[%clk 0:00:28]}  Re5 {[%clk 0:00:21]} 88. Kf4 {[%clk 0:00:28]}  Ke8 {[%clk 0:00:22]} 89. Rb7 {[%clk 0:00:28]}  Rd5 {[%clk 0:00:21]} 90. Ra7 {[%clk 0:00:28]}  Kf8 {[%clk 0:00:21]} 91. Rb7 {[%clk 0:00:29]}  Kg8 {[%clk 0:00:22]} 92. Ra7 {[%clk 0:00:28]}  Rg5 {[%clk 0:00:22]} 93. Rb7 {[%clk 0:00:29]}  Rg7 {[%clk 0:00:22]} 94. Rxg7+ {[%clk 0:00:28]}  Kxg7 {[%clk 0:00:23]} 95. Kf5 {[%clk 0:00:29]}  Kf8 {[%clk 0:00:23]} 96. Kxf6 {[%clk 0:00:29]} 1/2-1/2


[Site "https://www.chess.com"]

[Event "Titled Tuesday Blitz October 25 Late 2022"]
[White "Banusz, Tamas"]
[Black "Suder, Jakub"]
[WhiteFideId "722413"]
[BlackFideId "1195310"]
[WhiteElo "2602"]
[BlackElo "2174"]
[Result "1-0"]
[Round "05"]
[TimeControl "180+1"]
[Date "2022.10.26"]
[WhiteClock "0:01:46"]
[BlackClock "0:00:27"]

1. Nf3 {[%clk 0:03:00]}  d5 {[%clk 0:02:58]} 2. g3 {[%clk 0:03:01]}  Nf6 {[%clk 0:02:56]} 3. Bg2 {[%clk 0:03:01]}  e6 {[%clk 0:02:56]} 4. O-O {[%clk 0:03:01]}  Be7 {[%clk 0:02:56]} 5. d4 {[%clk 0:03:01]}  O-O {[%clk 0:02:56]} 6. c4 {[%clk 0:03:02]}  dxc4 {[%clk 0:02:56]} 7. Ne5 {[%clk 0:03:00]}  Nc6 {[%clk 0:02:56]} 8. Bxc6 {[%clk 0:02:58]}  bxc6 {[%clk 0:02:56]} 9. Nxc6 {[%clk 0:02:59]}  Qe8 {[%clk 0:02:56]} 10. Nxe7+ {[%clk 0:03:00]}  Qxe7 {[%clk 0:02:56]} 11. b3 {[%clk 0:03:01]}  cxb3 {[%clk 0:02:38]} 12. Qxb3 {[%clk 0:02:59]}  Rd8 {[%clk 0:02:30]} 13. Ba3 {[%clk 0:02:55]}  Qd7 {[%clk 0:02:21]} 14. Nc3 {[%clk 0:02:54]}  Ba6 {[%clk 0:02:17]} 15. Rfd1 {[%clk 0:02:53]}  Rab8 {[%clk 0:02:14]} 16. Qc2 {[%clk 0:02:49]}  Nd5 {[%clk 0:02:06]} 17. Ne4 {[%clk 0:02:44]}  Bb5 {[%clk 0:01:47]} 18. Nc5 {[%clk 0:02:39]}  Qc6 {[%clk 0:01:47]} 19. Rac1 {[%clk 0:02:35]}  Nb6 {[%clk 0:01:42]} 20. f3 {[%clk 0:02:27]}  Na4 {[%clk 0:01:36]} 21. Nb3 {[%clk 0:02:22]}  Qxc2 {[%clk 0:01:29]} 22. Rxc2 {[%clk 0:02:22]}  a6 {[%clk 0:01:29]} 23. Kf2 {[%clk 0:02:21]}  Rd7 {[%clk 0:01:28]} 24. Rdc1 {[%clk 0:02:18]}  c6 {[%clk 0:01:27]} 25. e3 {[%clk 0:02:13]}  Nb6 {[%clk 0:01:20]} 26. Na5 {[%clk 0:02:11]}  Ba4 {[%clk 0:01:06]} 27. Nxc6 {[%clk 0:02:08]}  Re8 {[%clk 0:01:02]} 28. Rb2 {[%clk 0:01:59]}  Nd5 {[%clk 0:01:02]} 29. Ne5 {[%clk 0:01:57]}  Rdd8 {[%clk 0:00:59]} 30. e4 {[%clk 0:01:54]}  Nf6 {[%clk 0:00:55]} 31. Ke3 {[%clk 0:01:54]}  h5 {[%clk 0:00:51]} 32. Rc7 {[%clk 0:01:54]}  Nd7 {[%clk 0:00:49]} 33. Rbb7 {[%clk 0:01:48]}  Nxe5 {[%clk 0:00:40]} 34. dxe5 {[%clk 0:01:48]}  Bb5 {[%clk 0:00:39]} 35. Bd6 {[%clk 0:01:48]}  f5 {[%clk 0:00:25]} 36. Rxg7+ {[%clk 0:01:46]}  Kh8 {[%clk 0:00:26]} 37. Rh7+ {[%clk 0:01:46]}  Kg8 {[%clk 0:00:27]} 38. Rbg7# {[%clk 0:01:46]} 1-0


[Site "https://www.chess.com"]

[Event "Titled Tuesday Blitz October 25 Late 2022"]
[White "Banzea, Alexandru-Bogdan"]
[Black "Annaberdiyev, Babageldi"]
[WhiteFideId "1232622"]
[BlackFideId "14000385"]
[WhiteElo "2294"]
[BlackElo "2332"]
[Result "1/2-1/2"]
[Round "05"]
[TimeControl "180+1"]
[Date "2022.10.26"]
[WhiteClock "0:00:28"]
[BlackClock "0:01:50"]

1. d4 {[%clk 0:03:00]}  e6 {[%clk 0:02:57]} 2. Bf4 {[%clk 0:03:00]}  c5 {[%clk 0:02:57]} 3. e3 {[%clk 0:02:59]}  Nc6 {[%clk 0:02:53]} 4. Nf3 {[%clk 0:02:58]}  Nf6 {[%clk 0:02:52]} 5. Nbd2 {[%clk 0:02:57]}  d5 {[%clk 0:02:53]} 6. c3 {[%clk 0:02:55]}  cxd4 {[%clk 0:02:51]} 7. exd4 {[%clk 0:02:56]}  Bd6 {[%clk 0:02:51]} 8. Bg3 {[%clk 0:02:55]}  h5 {[%clk 0:02:44]} 9. Bd3 {[%clk 0:02:52]}  a6 {[%clk 0:02:32]} 10. Qe2 {[%clk 0:02:43]}  g6 {[%clk 0:02:25]} 11. Bxd6 {[%clk 0:02:32]}  Qxd6 {[%clk 0:02:24]} 12. Ne5 {[%clk 0:02:33]}  Ng4 {[%clk 0:02:18]} 13. f4 {[%clk 0:02:28]}  Nh6 {[%clk 0:02:08]} 14. O-O {[%clk 0:02:24]}  Ne7 {[%clk 0:02:08]} 15. Rae1 {[%clk 0:02:15]}  O-O {[%clk 0:02:04]} 16. h3 {[%clk 0:02:04]}  h4 {[%clk 0:02:01]} 17. Kh2 {[%clk 0:01:52]}  Kg7 {[%clk 0:01:57]} 18. Qf2 {[%clk 0:01:51]}  Nhf5 {[%clk 0:01:54]} 19. Ndf3 {[%clk 0:01:50]}  Rh8 {[%clk 0:01:53]} 20. Ng5 {[%clk 0:01:23]}  Rf8 {[%clk 0:01:51]} 21. Ngf3 {[%clk 0:00:58]}  Rh8 {[%clk 0:01:50]} 22. Ng5 {[%clk 0:00:57]}  Rf8 {[%clk 0:01:50]} 23. Ngf3 {[%clk 0:00:28]} 1/2-1/2


[Site "https://www.chess.com"]

[Event "Titled Tuesday Blitz October 25 Late 2022"]
[White "Barria Zuniga, Daniel"]
[Black "Gritsenko, Nikolai"]
[WhiteFideId "3400816"]
[BlackFideId "14112493"]
[WhiteElo "2414"]
[BlackElo "2389"]
[Result "1-0"]
[Round "05"]
[TimeControl "180+1"]
[Date "2022.10.26"]
[WhiteClock "0:00:11"]
[BlackClock "0:00:01"]

1. d4 {[%clk 0:03:00]}  d5 {[%clk 0:02:59]} 2. c4 {[%clk 0:03:01]}  Nc6 {[%clk 0:02:59]} 3. Nc3 {[%clk 0:03:00]}  dxc4 {[%clk 0:02:58]} 4. Nf3 {[%clk 0:02:58]}  Nf6 {[%clk 0:02:58]} 5. e4 {[%clk 0:02:53]}  Bg4 {[%clk 0:02:56]} 6. d5 {[%clk 0:02:52]}  Ne5 {[%clk 0:02:44]} 7. Bf4 {[%clk 0:02:48]}  Ng6 {[%clk 0:02:34]} 8. Bg3 {[%clk 0:02:46]}  e5 {[%clk 0:02:32]} 9. dxe6 {[%clk 0:02:45]}  Bxe6 {[%clk 0:02:25]} 10. Nd4 {[%clk 0:02:44]}  Bd7 {[%clk 0:01:39]} 11. Bxc4 {[%clk 0:02:39]}  Bd6 {[%clk 0:01:25]} 12. O-O {[%clk 0:02:29]}  Bxg3 {[%clk 0:01:19]} 13. hxg3 {[%clk 0:02:30]}  O-O {[%clk 0:01:19]} 14. Qb3 {[%clk 0:02:13]}  Rb8 {[%clk 0:01:02]} 15. Rad1 {[%clk 0:02:12]}  c6 {[%clk 0:00:45]} 16. Rfe1 {[%clk 0:02:07]}  b5 {[%clk 0:00:43]} 17. Bxf7+ {[%clk 0:01:56]}  Rxf7 {[%clk 0:00:42]} 18. e5 {[%clk 0:01:57]}  c5 {[%clk 0:00:18]} 19. Nc6 {[%clk 0:01:53]}  c4 {[%clk 0:00:12]} 20. Qc2 {[%clk 0:01:45]}  Bxc6 {[%clk 0:00:12]} 21. Rxd8+ {[%clk 0:01:44]}  Rxd8 {[%clk 0:00:12]} 22. exf6 {[%clk 0:01:43]}  Rxf6 {[%clk 0:00:12]} 23. a4 {[%clk 0:01:41]}  a6 {[%clk 0:00:12]} 24. axb5 {[%clk 0:01:41]}  axb5 {[%clk 0:00:12]} 25. b3 {[%clk 0:01:21]}  h5 {[%clk 0:00:09]} 26. bxc4 {[%clk 0:01:11]}  bxc4 {[%clk 0:00:09]} 27. Na2 {[%clk 0:01:11]}  Rd4 {[%clk 0:00:07]} 28. Rd1 {[%clk 0:01:07]}  Rxd1+ {[%clk 0:00:04]} 29. Qxd1 {[%clk 0:01:08]}  h4 {[%clk 0:00:04]} 30. gxh4 {[%clk 0:00:50]}  Nxh4 {[%clk 0:00:03]} 31. f3 {[%clk 0:00:48]}  Nxg2 {[%clk 0:00:02]} 32. Qd4 {[%clk 0:00:24]}  Bxf3 {[%clk 0:00:02]} 33. Qxc4+ {[%clk 0:00:24]}  Kh7 {[%clk 0:00:02]} 34. Nc3 {[%clk 0:00:20]}  Nf4 {[%clk 0:00:02]} 35. Qc8 {[%clk 0:00:14]}  Rg6+ {[%clk 0:00:01]} 36. Kf1 {[%clk 0:00:12]}  Bg4 {[%clk 0:00:02]} 37. Qb8 {[%clk 0:00:11]}  Bh3+ {[%clk 0:00:01]} 38. Kf2 {[%clk 0:00:11]}  Nd3+ {[%clk 0:00:02]} 39. Ke3 {[%clk 0:00:11]}  Nc5 {[%clk 0:00:02]} 40. Qb1 {[%clk 0:00:11]}  Ne6 {[%clk 0:00:01]} 41. Qh1 {[%clk 0:00:10]}  Rh6 {[%clk 0:00:01]} 42. Qe4+ {[%clk 0:00:11]} 1-0


[Site "https://www.chess.com"]

[Event "Titled Tuesday Blitz October 25 Late 2022"]
[White "Bayo Milagro, Alvaro"]
[Black "Predke, Alexandr"]
[WhiteFideId "22275240"]
[BlackFideId "24107581"]
[WhiteElo "2270"]
[BlackElo "2614"]
[Result "0-1"]
[Round "05"]
[TimeControl "180+1"]
[Date "2022.10.26"]
[WhiteClock "0:00:03"]
[BlackClock "0:00:05"]

1. e4 {[%clk 0:03:00]}  c5 {[%clk 0:02:59]} 2. Nf3 {[%clk 0:02:57]}  e6 {[%clk 0:02:59]} 3. d4 {[%clk 0:02:58]}  cxd4 {[%clk 0:03:00]} 4. Nxd4 {[%clk 0:02:58]}  Nc6 {[%clk 0:03:00]} 5. Nc3 {[%clk 0:02:59]}  Qc7 {[%clk 0:02:59]} 6. Be3 {[%clk 0:02:59]}  a6 {[%clk 0:02:57]} 7. Qf3 {[%clk 0:03:00]}  h5 {[%clk 0:02:56]} 8. O-O-O {[%clk 0:02:59]}  Ne5 {[%clk 0:02:54]} 9. Qg3 {[%clk 0:02:44]}  h4 {[%clk 0:02:51]} 10. Qh3 {[%clk 0:02:44]}  b5 {[%clk 0:02:34]} 11. f4 {[%clk 0:02:44]}  Nc4 {[%clk 0:02:33]} 12. Bxc4 {[%clk 0:02:42]}  Qxc4 {[%clk 0:02:30]} 13. Kb1 {[%clk 0:02:09]}  Bb7 {[%clk 0:02:28]} 14. Nb3 {[%clk 0:01:59]}  Qc7 {[%clk 0:01:59]} 15. Rhe1 {[%clk 0:01:48]}  Rc8 {[%clk 0:01:39]} 16. Re2 {[%clk 0:00:59]}  Nf6 {[%clk 0:01:18]} 17. e5 {[%clk 0:00:57]}  Nd5 {[%clk 0:01:19]} 18. Nxd5 {[%clk 0:00:50]}  Bxd5 {[%clk 0:01:19]} 19. f5 {[%clk 0:00:46]}  Qxe5 {[%clk 0:01:06]} 20. Rdd2 {[%clk 0:00:17]}  Be4 {[%clk 0:00:49]} 21. fxe6 {[%clk 0:00:14]}  Qxe6 {[%clk 0:00:46]} 22. g4 {[%clk 0:00:09]}  Bb4 {[%clk 0:00:26]} 23. Rd4 {[%clk 0:00:09]}  Be7 {[%clk 0:00:20]} 24. Bg5 {[%clk 0:00:04]}  Bxc2+ {[%clk 0:00:14]} 25. Rxc2 {[%clk 0:00:04]}  Rxc2 {[%clk 0:00:12]} 26. Bxe7 {[%clk 0:00:05]}  Re2 {[%clk 0:00:04]} 27. Bb4 {[%clk 0:00:04]}  Qg6+ {[%clk 0:00:03]} 28. Qd3 {[%clk 0:00:03]}  Qxd3+ {[%clk 0:00:02]} 29. Rxd3 {[%clk 0:00:03]}  Rxh2 {[%clk 0:00:02]} 30. Nc5 {[%clk 0:00:04]}  Ke7 {[%clk 0:00:02]} 31. Rxd7+ {[%clk 0:00:04]}  Kf6 {[%clk 0:00:03]} 32. Bc3+ {[%clk 0:00:04]}  Kg6 {[%clk 0:00:04]} 33. Nd3 {[%clk 0:00:03]}  f6 {[%clk 0:00:04]} 34. Nf4+ {[%clk 0:00:03]}  Kg5 {[%clk 0:00:04]} 35. Ne6+ {[%clk 0:00:03]}  Kxg4 {[%clk 0:00:05]} 36. Rxg7+ {[%clk 0:00:04]}  Kf5 {[%clk 0:00:05]} 37. Nd4+ {[%clk 0:00:05]}  Ke4 {[%clk 0:00:05]} 38. Rg4+ {[%clk 0:00:04]}  Kd3 {[%clk 0:00:05]} 39. Rf4 {[%clk 0:00:03]}  Rh1+ {[%clk 0:00:05]} 0-1


[Site "https://www.chess.com"]

[Event "Titled Tuesday Blitz October 25 Late 2022"]
[White "Bordi, Kevin"]
[Black "Goroshkov, Maksym"]
[WhiteFideId "621862"]
[BlackFideId "14142716"]
[WhiteElo "2816"]
[BlackElo "2257"]
[Result "1-0"]
[Round "05"]
[TimeControl "180+1"]
[Date "2022.10.26"]
[WhiteClock "0:00:13"]
[BlackClock "0:00:07"]

1. e4 {[%clk 0:03:00]}  e5 {[%clk 0:02:59]} 2. Nf3 {[%clk 0:03:01]}  d6 {[%clk 0:02:59]} 3. d4 {[%clk 0:03:01]}  Bg4 {[%clk 0:03:00]} 4. dxe5 {[%clk 0:03:00]}  Nd7 {[%clk 0:03:01]} 5. Be2 {[%clk 0:02:56]}  Bxf3 {[%clk 0:02:58]} 6. Bxf3 {[%clk 0:02:56]}  Nxe5 {[%clk 0:02:59]} 7. Be2 {[%clk 0:02:56]}  Nf6 {[%clk 0:02:59]} 8. Nc3 {[%clk 0:02:55]}  Be7 {[%clk 0:02:59]} 9. f4 {[%clk 0:02:54]}  Nc6 {[%clk 0:02:55]} 10. O-O {[%clk 0:02:53]}  O-O {[%clk 0:02:56]} 11. Bf3 {[%clk 0:02:53]}  Qd7 {[%clk 0:02:52]} 12. Re1 {[%clk 0:02:49]}  Rad8 {[%clk 0:02:52]} 13. Nd5 {[%clk 0:02:45]}  Nxd5 {[%clk 0:02:48]} 14. Qxd5 {[%clk 0:02:46]}  Bf6 {[%clk 0:02:47]} 15. c3 {[%clk 0:02:45]}  Rfe8 {[%clk 0:02:43]} 16. Be3 {[%clk 0:02:44]}  Qe6 {[%clk 0:02:35]} 17. Rad1 {[%clk 0:02:43]}  Qxd5 {[%clk 0:02:31]} 18. Rxd5 {[%clk 0:02:43]}  a6 {[%clk 0:02:30]} 19. Rdd1 {[%clk 0:02:42]}  h6 {[%clk 0:02:26]} 20. Kf2 {[%clk 0:02:42]}  g5 {[%clk 0:02:22]} 21. e5 {[%clk 0:01:58]}  gxf4 {[%clk 0:02:14]} 22. Bxf4 {[%clk 0:01:59]}  dxe5 {[%clk 0:02:09]} 23. Bxc6 {[%clk 0:01:56]}  bxc6 {[%clk 0:02:00]} 24. Bxh6 {[%clk 0:01:48]}  Rd6 {[%clk 0:01:47]} 25. Be3 {[%clk 0:01:27]}  Red8 {[%clk 0:01:44]} 26. Ke2 {[%clk 0:01:27]}  Be7 {[%clk 0:01:37]} 27. Rf1 {[%clk 0:01:21]}  Kg7 {[%clk 0:01:24]} 28. g3 {[%clk 0:01:15]}  Kg6 {[%clk 0:01:22]} 29. h4 {[%clk 0:01:07]}  f5 {[%clk 0:01:07]} 30. h5+ {[%clk 0:01:07]}  Kxh5 {[%clk 0:01:07]} 31. Rxf5+ {[%clk 0:01:03]}  Kg6 {[%clk 0:01:00]} 32. Rdf1 {[%clk 0:00:57]}  Bf6 {[%clk 0:00:44]} 33. g4 {[%clk 0:00:55]}  Rh8 {[%clk 0:00:41]} 34. R1f2 {[%clk 0:00:39]}  Rh3 {[%clk 0:00:36]} 35. R5f3 {[%clk 0:00:38]}  Rxf3 {[%clk 0:00:31]} 36. Kxf3 {[%clk 0:00:36]}  Rd1 {[%clk 0:00:29]} 37. g5 {[%clk 0:00:29]}  Be7 {[%clk 0:00:21]} 38. Re2 {[%clk 0:00:29]}  Rf1+ {[%clk 0:00:19]} 39. Ke4 {[%clk 0:00:29]}  Rf5 {[%clk 0:00:19]} 40. Rg2 {[%clk 0:00:27]}  Bd6 {[%clk 0:00:16]} 41. Rh2 {[%clk 0:00:26]}  Bf8 {[%clk 0:00:17]} 42. Rh8 {[%clk 0:00:21]}  Bg7 {[%clk 0:00:14]} 43. Ra8 {[%clk 0:00:20]}  Rf1 {[%clk 0:00:08]} 44. Rxa6 {[%clk 0:00:20]}  Rb1 {[%clk 0:00:08]} 45. Rxc6+ {[%clk 0:00:20]}  Kf7 {[%clk 0:00:07]} 46. Rxc7+ {[%clk 0:00:18]}  Kg6 {[%clk 0:00:07]} 47. Rc6+ {[%clk 0:00:18]}  Kf7 {[%clk 0:00:07]} 48. Rb6 {[%clk 0:00:18]}  Bf8 {[%clk 0:00:06]} 49. g6+ {[%clk 0:00:18]}  Kg8 {[%clk 0:00:06]} 50. Rb7 {[%clk 0:00:17]}  Re1 {[%clk 0:00:04]} 51. Kd3 {[%clk 0:00:17]}  e4+ {[%clk 0:00:03]} 52. Kd2 {[%clk 0:00:17]}  Rb1 {[%clk 0:00:03]} 53. Bd4 {[%clk 0:00:17]}  Bh6+ {[%clk 0:00:03]} 54. Kc2 {[%clk 0:00:17]}  Rc1+ {[%clk 0:00:03]} 55. Kb3 {[%clk 0:00:17]}  e3 {[%clk 0:00:03]} 56. g7 {[%clk 0:00:17]}  Bxg7 {[%clk 0:00:03]} 57. Rxg7+ {[%clk 0:00:16]}  Kf8 {[%clk 0:00:04]} 58. Rg2 {[%clk 0:00:15]}  Re1 {[%clk 0:00:04]} 59. Kc2 {[%clk 0:00:14]}  e2 {[%clk 0:00:05]} 60. Kd2 {[%clk 0:00:13]}  Rb1 {[%clk 0:00:05]} 61. Rxe2 {[%clk 0:00:13]}  Rxb2+ {[%clk 0:00:06]} 62. Kd3 {[%clk 0:00:14]}  Rb7 {[%clk 0:00:06]} 63. c4 {[%clk 0:00:14]}  Ra7 {[%clk 0:00:07]} 64. Bxa7 {[%clk 0:00:13]} 1-0


[Site "https://www.chess.com"]

[Event "Titled Tuesday Blitz October 25 Late 2022"]
[White "Boruchovsky, Avital"]
[Black "Yoo, Christopher Woojin"]
[WhiteFideId "2800055"]
[BlackFideId "30909694"]
[WhiteElo "2466"]
[BlackElo "2463"]
[Result "0-1"]
[Round "05"]
[TimeControl "180+1"]
[Date "2022.10.26"]
[WhiteClock "0:00:21"]
[BlackClock "0:00:14"]

1. e4 {[%clk 0:03:00]}  c6 {[%clk 0:02:55]} 2. c4 {[%clk 0:02:58]}  d5 {[%clk 0:02:56]} 3. cxd5 {[%clk 0:02:59]}  cxd5 {[%clk 0:02:57]} 4. exd5 {[%clk 0:02:59]}  Nf6 {[%clk 0:02:57]} 5. Nf3 {[%clk 0:03:00]}  Nxd5 {[%clk 0:02:57]} 6. Nc3 {[%clk 0:03:01]}  Nc6 {[%clk 0:02:58]} 7. Bb5 {[%clk 0:03:00]}  e6 {[%clk 0:02:36]} 8. Qa4 {[%clk 0:02:58]}  Bd7 {[%clk 0:02:35]} 9. Nxd5 {[%clk 0:02:58]}  exd5 {[%clk 0:02:34]} 10. O-O {[%clk 0:02:58]}  Be7 {[%clk 0:02:35]} 11. Re1 {[%clk 0:02:44]}  O-O {[%clk 0:02:33]} 12. Qb3 {[%clk 0:02:18]}  Bf6 {[%clk 0:01:45]} 13. h3 {[%clk 0:01:57]}  Qb6 {[%clk 0:01:23]} 14. d3 {[%clk 0:01:35]}  Na5 {[%clk 0:01:21]} 15. Qxd5 {[%clk 0:01:30]}  Qxb5 {[%clk 0:01:19]} 16. Qd6 {[%clk 0:01:24]}  Rfe8 {[%clk 0:01:07]} 17. Bd2 {[%clk 0:01:23]}  Qc6 {[%clk 0:00:45]} 18. Qg3 {[%clk 0:01:19]}  b6 {[%clk 0:00:43]} 19. Ne5 {[%clk 0:01:11]}  Qd5 {[%clk 0:00:42]} 20. Bc3 {[%clk 0:01:08]}  Bf5 {[%clk 0:00:39]} 21. Re3 {[%clk 0:00:59]}  Nc6 {[%clk 0:00:30]} 22. Rae1 {[%clk 0:00:41]}  Nxe5 {[%clk 0:00:28]} 23. Bxe5 {[%clk 0:00:40]}  Rxe5 {[%clk 0:00:27]} 24. Rxe5 {[%clk 0:00:41]}  Bxe5 {[%clk 0:00:28]} 25. Rxe5 {[%clk 0:00:41]}  Qxd3 {[%clk 0:00:28]} 26. Re3 {[%clk 0:00:37]}  Qd1+ {[%clk 0:00:27]} 27. Kh2 {[%clk 0:00:37]}  Qd7 {[%clk 0:00:28]} 28. Re5 {[%clk 0:00:35]}  Be6 {[%clk 0:00:28]} 29. h4 {[%clk 0:00:31]}  f6 {[%clk 0:00:26]} 30. Re3 {[%clk 0:00:30]}  Re8 {[%clk 0:00:25]} 31. h5 {[%clk 0:00:29]}  Qf7 {[%clk 0:00:24]} 32. Qh4 {[%clk 0:00:25]}  Bd7 {[%clk 0:00:24]} 33. Rd3 {[%clk 0:00:20]}  Re5 {[%clk 0:00:24]} 34. g4 {[%clk 0:00:20]}  Bc6 {[%clk 0:00:20]} 35. Qg3 {[%clk 0:00:19]}  Qe7 {[%clk 0:00:18]} 36. f3 {[%clk 0:00:18]}  Re2+ {[%clk 0:00:17]} 37. Kh3 {[%clk 0:00:19]}  Qe5 {[%clk 0:00:16]} 38. Rd8+ {[%clk 0:00:18]}  Kf7 {[%clk 0:00:16]} 39. Rc8 {[%clk 0:00:18]}  Qxg3+ {[%clk 0:00:14]} 40. Kxg3 {[%clk 0:00:19]}  Bd5 {[%clk 0:00:15]} 41. Rc7+ {[%clk 0:00:19]}  Re7 {[%clk 0:00:15]} 42. Rc8 {[%clk 0:00:19]}  Bxa2 {[%clk 0:00:15]} 43. f4 {[%clk 0:00:20]}  h6 {[%clk 0:00:14]} 44. Kf2 {[%clk 0:00:20]}  Be6 {[%clk 0:00:14]} 45. f5 {[%clk 0:00:20]}  Bxc8 {[%clk 0:00:14]} 46. b4 {[%clk 0:00:21]}  Ba6 {[%clk 0:00:14]} 0-1


[Site "https://www.chess.com"]